bitfinex-derivatives/quotes_SOLF0:USTF0_20241206
["timestamp","ask_amount","ask_price","bid_price","bid_amount"]
[1733494749310,3.8603,234.7,234.58,10.45809611]
[1733494749616,10.45809611,234.76,234.61,10.45809611]
[1733494749809,10.45809611,234.76,234.56,15.33]
[1733494749810,10.45809611,234.79,234.64,10.45809611]
[1733494750015,19.58129866,234.78,234.64,10.45809611]
[1733494750213,20.23527179,234.77,234.64,10.45809611]
[1733494750416,0.65397313,234.77,234.64,10.45809611]
[1733494750618,10.45809611,234.79,234.64,10.45809611]
[1733494751513,10.45809611,234.73,234.52,2.5891]
[1733494751715,10.45809611,234.7,234.55,10.45809611]
[1733494752122,16.73346867,234.71,234.53,2.54]
[1733494752317,18.04536867,234.71,234.53,2.54]
[1733494753420,18.04536867,234.71,234.54,2.54]
[1733494754710,1.3119,234.71,234.56,16.73346867]
[1733494755619,18.04536867,234.71,234.54,2.54]
[1733494757321,1.3119,234.71,234.56,16.73346867]
[1733494759317,1.3119,234.71,234.54,2.54]
[1733494762516,1.3119,234.71,234.55,2.52]
[1733494763322,19.48916867,234.72,234.6,16.73346867]
[1733494763323,2.7557,234.72,234.6,16.73346867]
[1733494763524,1.3596,234.72,234.61,2.52]
[1733494763732,16.73346867,234.8,234.61,2.52]
[1733494764020,16.73346867,234.8,234.62,1.3261]
[1733494764418,1.3465,234.81,234.64,16.73346867]
[1733494767429,1.3465,234.81,234.68,16.73346867]
[1733494767626,1.3465,234.81,234.69,2.52]
[1733494767925,0.80015,234.83,234.72,16.73346867]
[1733494768429,0.80015,234.83,234.73,1.2686]
[1733494770725,0.80015,234.83,234.76,16.73346867]
[1733494771022,0.80015,234.83,234.77,2.52]
[1733494776723,0.80015,234.83,234.79,10.44012047]
[1733494777927,0.80015,234.83,234.8,2.52]
[1733494781333,10.44012047,234.91,234.8,2.52]
[1733494781527,10.44012047,234.88,234.73,1.2686]
[1733494781728,10.44012047,234.85,234.72,10.44012047]
[1733494782032,10.44012047,234.82,234.69,10.44012047]
[1733494782234,10.44012047,234.82,234.66,10.44012047]
[1733494782428,10.44012047,234.82,234.69,2.52]
[1733494782827,10.44012047,234.79,234.69,2.52]
[1733494783033,10.44012047,234.76,234.68,2.52]
[1733494783232,2.6094,234.75,234.68,2.52]
[1733494784724,10.44012047,234.73,234.68,0.4166]
[1733494784923,10.44012047,234.73,234.57,10.44012047]
[1733494785125,10.44012047,234.7,234.58,2.52]
[1733494786336,10.44012047,234.73,234.58,2.52]
[1733494786635,2.6094,234.75,234.6,10.44012047]
[1733494787431,10.44012047,234.73,234.6,10.44012047]
[1733494788035,10.44012047,234.7,234.61,2.52]
[1733494788231,10.44012047,234.73,234.61,2.52]
[1733494789236,10.44012047,234.7,234.61,2.52]
[1733494789432,1.2766,234.69,234.61,2.52]
[1733494789638,10.44012047,234.67,234.58,2.52]
[1733494790537,10.44012047,234.67,234.57,2.52]
[1733494791943,10.44012047,234.64,234.51,10.44012047]
[1733494792134,1.3606,234.63,234.55,2.52]
[1733494792333,1.3606,234.63,234.54,2.52]
[1733494793146,1.3606,234.63,234.54,12.96012047]
[1733494793935,1.3606,234.63,234.54,2.52]
[1733494794741,1.3606,234.63,234.49,10.44012047]
[1733494794942,1.3606,234.63,234.5,2.52]
[1733494795343,1.3606,234.63,234.51,2.52]
[1733494796645,2.6705,234.63,234.51,2.52]
[1733494796849,2.6705,234.63,234.52,10.44012047]
[1733494797444,10.44012047,234.67,234.52,10.44012047]
[1733494797641,10.44012047,234.67,234.52,11.82452047]
[1733494802644,10.44012047,234.64,234.52,1.3844]
[1733494803047,10.44012047,234.64,234.53,2.52]
[1733494803546,10.44012047,234.67,234.53,2.52]
[1733494803749,10.44012047,234.67,234.54,10.44012047]
[1733494804353,2.6175,234.69,234.54,10.44012047]
[1733494804557,1.2766,234.69,234.6,10.44012047]
[1733494804751,1.2709,234.73,234.61,2.52]
[1733494804946,10.44012047,234.72,234.61,2.52]
[1733494805655,11.79622047,234.72,234.61,2.52]
[1733494806452,1.3561,234.72,234.61,12.96012047]
[1733494806650,12.79,234.99,234.61,12.96012047]
[1733494806852,10.44012047,234.77,234.61,12.96012047]
[1733494808566,2.7671,234.82,234.58,1.2955]
[1733494808567,10.44012047,234.71,234.58,1.2955]
[1733494808760,10.44012047,234.71,234.59,2.52]
[1733494810163,10.44012047,234.71,234.58,1.2955]
[1733494810361,10.44012047,234.68,234.59,2.52]
[1733494810557,10.44012047,234.68,234.6,2.52]
[1733494812161,10.44012047,234.65,234.6,2.52]
[1733494812464,10.44012047,234.62,234.54,2.52]
[1733494813166,4.0109,234.7,234.54,2.52]
[1733494813460,10.44012047,234.64,234.54,2.52]
[1733494813866,10.44012047,234.61,234.54,2.52]
[1733494814066,10.44012047,234.61,234.53,2.52]
[1733494814266,1.348,234.6,234.52,2.52]
[1733494814458,2.6108,234.6,234.52,2.52]
[1733494815860,10.44012047,234.58,234.48,2.52]
[1733494816267,10.44012047,234.55,234.48,2.52]
[1733494816563,10.44012047,234.58,234.48,2.52]
[1733494818064,10.44012047,234.64,234.48,12.96012047]
[1733494818463,10.44012047,234.61,234.48,2.52]
[1733494819070,10.44012047,234.61,234.48,12.96012047]
[1733494820571,10.44012047,234.63,234.48,12.96012047]
[1733494821066,10.44012047,234.66,234.51,10.44012047]
[1733494822069,10.44012047,234.69,234.54,10.44012047]
[1733494822274,10.44012047,234.69,234.55,2.52]
[1733494822575,10.44012047,234.69,234.55,6.6654]
[1733494822973,10.44012047,234.66,234.56,2.52]
[1733494824074,10.44012047,234.69,234.56,2.52]
[1733494824466,10.44012047,234.69,234.56,3.8974]
[1733494824869,10.44012047,234.69,234.56,2.52]
[1733494825075,10.44012047,234.66,234.57,2.52]
[1733494826475,10.44012047,234.63,234.49,1.3774]
[1733494826670,10.44012047,234.63,234.5,2.52]
[1733494827074,10.44012047,234.6,234.5,2.52]
[1733494827373,10.44012047,234.6,234.51,2.52]
[1733494827679,10.44012047,234.57,234.42,11.78452047]
[1733494827976,10.44012047,234.57,234.43,2.52]
[1733494829373,10.44012047,234.6,234.45,10.44012047]
[1733494829574,8.26003931,234.59,234.45,10.44012047]
[1733494829775,10.44012047,234.6,234.45,10.44012047]
[1733494829971,19.69115228,234.59,234.45,10.44012047]
[1733494830175,10.44012047,234.6,234.45,10.44012047]
[1733494830373,4.0629,234.62,234.48,10.44012047]
[1733494830573,19.69018634,234.61,234.49,2.52]
[1733494830774,4.0629,234.62,234.49,2.52]
[1733494830975,8.25910124,234.61,234.49,2.52]
[1733494831175,2.682,234.62,234.51,10.44012047]
[1733494831378,10.44012047,234.66,234.51,10.44012047]
[1733494831583,19.68942638,234.65,234.52,3.9234]
[1733494831873,10.44012047,234.66,234.52,3.9234]
[1733494832077,10.44012047,234.63,234.52,3.9234]
[1733494834981,2.658,234.71,234.58,10.44012047]
[1733494835280,10.44012047,234.74,234.61,10.44012047]
[1733494835484,19.68845065,234.73,234.61,10.44012047]
[1733494835680,10.44012047,234.77,234.62,1.365]
[1733494835874,1.3614,234.78,234.62,1.365]
[1733494835875,2.7325,234.78,234.64,10.44012047]
[1733494836080,2.7325,234.78,234.65,2.52]
[1733494836679,10.44012047,234.77,234.66,2.52]
[1733494837178,10.44012047,234.71,234.27,7.4944916]
[1733494837482,10.44012047,234.68,234.6,2.52]
[1733494837881,10.44012047,234.65,234.52,10.44012047]
[1733494838078,10.44012047,234.65,234.53,2.52]
[1733494838783,10.44012047,234.68,234.53,2.52]
[1733494839081,10.44012047,234.68,234.55,10.44012047]
[1733494840382,10.44012047,234.68,234.53,2.52]
[1733494841578,10.44012047,234.68,234.55,10.44012047]
[1733494843381,10.44012047,234.68,234.56,2.52]
[1733494843582,2.6017,234.67,234.57,2.52]
[1733494843777,10.44012047,234.65,234.58,2.52]
[1733494844586,4.0034,234.67,234.58,2.52]
[1733494846584,10.44012047,234.74,234.58,12.96012047]
[1733494846790,20.33916612,234.73,234.58,12.96012047]
[1733494847088,19.68510168,234.72,234.58,12.96012047]
[1733494847284,10.44012047,234.74,234.58,12.96012047]
[1733494847785,3.8678,234.76,234.61,10.44012047]
[1733494848787,3.8678,234.76,234.6,1.3434]
[1733494848982,2.596,234.76,234.61,10.44012047]
[1733494851790,2.596,234.76,234.6,1.3434]
[1733494851791,11.17598047,234.8,234.64,10.44012047]
[1733494852087,11.17598047,234.8,234.65,2.52]
[1733494853701,11.17598047,234.8,234.67,10.44012047]
[1733494854285,0.73586,234.8,234.67,10.44012047]
[1733494856986,0.73586,234.8,234.7,10.44012047]
[1733494857190,0.73586,234.8,234.65,2.52]
[1733494857191,0.73586,234.8,234.73,10.44012047]
[1733494858296,0.73586,234.8,234.76,10.44012047]
[1733494858496,0.73586,234.8,234.77,2.5]
[1733494860298,10.44012047,234.91,234.77,2.5]
[1733494862696,10.44012047,234.88,234.73,11.83572047]
[1733494862901,10.44012047,234.85,234.74,2.5]
[1733494864602,10.44012047,234.88,234.74,2.5]
[1733494866203,10.44012047,234.91,234.76,10.44012047]
[1733494870301,1.2867,234.93,234.79,10.44012047]
[1733494870501,2.706,234.94,234.82,10.44012047]
[1733494870697,10.44012047,235.08,234.75,1.3412]
[1733494870698,1.3256,234.99,234.85,10.44012047]
[1733494871399,1.3256,234.99,234.88,10.44012047]
[1733494871608,1.3256,234.99,234.89,2.5]
[1733494871999,10.44012047,235.03,234.89,2.5]
[1733494873199,10.44012047,235.0,234.89,2.5]
[1733494873505,10.44012047,234.97,234.82,10.44012047]
[1733494873705,2.5,235.03,234.83,2.5]
[1733494873706,10.44012047,234.94,234.83,2.5]
[1733494873903,10.44012047,234.94,234.84,2.5]
[1733494874097,10.44012047,234.94,234.85,2.5]
[1733494874298,10.44012047,234.91,234.84,2.5]
[1733494874602,10.44012047,234.88,234.81,2.5]
[1733494874808,10.44012047,234.88,234.82,2.5]
[1733494875107,10.44012047,234.88,234.76,10.44012047]
[1733494875108,10.44012047,234.88,234.81,2.5]
[1733494875606,10.44012047,234.9,234.81,2.5]
[1733494876199,10.44012047,234.87,234.8,20.0]
[1733494876404,1.365,234.86,234.8,20.0]
[1733494876604,10.44012047,234.84,234.8,20.0]
[1733494877007,10.44012047,234.81,234.8,9.036]
[1733494877307,10.44012047,234.81,234.8,0.3937]
[1733494877802,10.44012047,234.86,234.8,0.3937]
[1733494879412,10.44012047,234.89,234.8,0.3937]
[1733494879911,10.44012047,234.92,234.8,0.3937]
[1733494880504,10.44012047,234.92,234.8,1.6814]
[1733494880903,10.44012047,234.95,234.8,1.6814]
[1733494881310,10.44012047,234.92,234.81,2.5]
[1733494881812,10.44012047,234.89,234.81,2.5]
[1733494883110,10.44012047,234.92,234.81,2.5]
[1733494883812,10.44012047,234.95,234.81,2.5]
[1733494884205,10.44012047,234.95,234.82,10.44012047]
[1733494884412,10.44012047,234.95,234.81,2.5]
[1733494885504,0.57028,235.0,234.85,10.44012047]
[1733494885917,0.57028,235.0,234.86,1.3502]
[1733494886113,0.57028,235.0,234.87,2.5]
[1733494886309,0.57028,235.0,234.87,5.1505]
[1733494886515,0.57028,235.0,234.88,10.44012047]
[1733494888111,0.57028,235.0,234.88,16.68294117]
[1733494900335,0.57028,235.0,234.89,2.5]
[1733494901729,0.57028,235.0,234.9,2.5]
[1733494902126,0.57028,235.0,234.87,2.6505]
[1733494902336,0.57028,235.0,234.88,2.5]
[1733494902830,16.68294117,234.97,234.87,2.5]
[1733494903434,19.61664675,234.96,234.87,2.5]
[1733494903634,19.61710171,234.95,234.87,2.5]
[1733494903830,16.68294117,234.97,234.87,2.5]
[1733494904036,19.61674539,234.96,234.87,2.5]
[1733494904336,16.68294117,234.97,234.87,2.5]
[1733494904535,8.22639937,234.96,234.87,2.5]
[1733494904739,19.18294117,235.01,234.87,2.5]
[1733494904942,20.26954353,235.0,234.87,2.5]
[1733494905237,19.61641022,234.99,234.87,2.5]
[1733494905434,8.22612384,234.98,234.87,2.5]
[1733494905936,19.18294117,235.01,234.87,2.5]
[1733494906240,20.27070748,235.0,234.81,1.343]
[1733494906535,16.68294117,234.97,234.81,1.343]
[1733494906738,20.27067023,234.96,234.82,2.5]
[1733494906934,20.27067023,234.95,234.83,2.5]
[1733494907131,19.61756822,234.94,234.83,2.5]
[1733494907332,19.61496365,234.93,234.83,2.5]
[1733494907635,19.61452949,234.92,234.83,2.5]
[1733494907934,8.22656031,234.91,234.81,1.343]
[1733494908134,10.44019825,234.91,234.82,2.5]
[1733494910135,10.44019825,234.91,234.8,0.3937]
[1733494910336,10.44019825,234.94,234.81,2.5]
[1733494910538,10.44019825,234.91,234.81,2.5]
[1733494913131,10.44019825,234.94,234.81,2.5]
[1733494914141,19.61641107,234.93,234.81,2.5]
[1733494914339,10.44019825,234.94,234.81,2.5]
[1733494914539,2.5,235.04,234.82,10.44019825]
[1733494914741,10.44019825,234.98,234.83,1.3605]
[1733494914942,8.22662726,234.97,234.83,1.3605]
[1733494916040,11.39526314,234.96,234.83,1.3605]
[1733494916239,8.22662726,234.95,234.83,1.3605]
[1733494916439,10.44019825,234.98,234.83,1.3605]
[1733494916741,20.27166985,234.97,234.85,0.3937]
[1733494916939,19.61859328,234.96,234.85,0.3937]
[1733494917234,10.44019825,234.98,234.85,0.3937]
[1733494917440,19.62211293,234.97,234.85,10.83389825]
[1733494917643,10.44019825,234.98,234.85,10.83389825]
[1733494917837,19.62373384,234.97,234.85,10.83389825]
[1733494918039,10.44019825,234.98,234.85,10.83389825]
[1733494918239,19.6255771,234.97,234.85,10.83389825]
[1733494918432,10.44019825,234.98,234.85,10.83389825]
[1733494918633,19.62629161,234.97,234.85,10.83389825]
[1733494918837,10.44019825,234.98,234.85,0.3937]
[1733494919037,20.2819683,234.97,234.85,0.3937]
[1733494919239,19.62887149,234.96,234.85,0.3937]
[1733494919443,8.23129771,234.95,234.85,0.3937]
[1733494919643,10.44019825,234.98,234.85,0.3937]
[1733494919840,19.62777618,234.97,234.85,0.3937]
[1733494920039,8.23095635,234.96,234.85,0.3937]
[1733494920239,19.62777618,234.96,234.85,0.3937]
[1733494920443,10.44019825,234.98,234.85,0.3937]
[1733494920746,19.63022085,234.97,234.85,0.3937]
[1733494920937,19.63022085,234.96,234.85,0.3937]
[1733494921139,10.44019825,234.95,234.85,0.3937]
[1733494921339,19.63254994,234.94,234.85,0.3937]
[1733494921539,8.23311748,234.93,234.85,0.3937]
[1733494921842,10.44019825,234.95,234.85,0.3937]
[1733494922145,19.63603352,234.94,234.85,0.3937]
[1733494922345,19.63603352,234.93,234.85,0.3937]
[1733494922540,8.23458703,234.92,234.85,0.3937]
[1733494922845,10.44019825,234.92,234.85,0.3937]
[1733494923342,8.24175635,234.91,234.85,0.3937]
[1733494923545,10.44019825,234.92,234.85,0.3937]
[1733494923741,8.24172433,234.91,234.85,0.3937]
[1733494923942,10.44019825,234.92,234.85,0.3937]
[1733494924336,8.24358555,234.91,234.85,0.3937]
[1733494924542,10.44019825,234.92,234.85,0.3937]
[1733494924739,19.65790461,234.91,234.85,0.3937]
[1733494924938,10.44019825,234.92,234.85,0.3937]
[1733494925137,10.44019825,234.89,234.85,0.3937]
[1733494925340,8.24456051,234.88,234.85,0.3937]
[1733494925643,11.41471753,234.88,234.85,0.3937]
[1733494925844,10.44019825,234.89,234.85,0.3937]
[1733494926044,19.65933734,234.88,234.85,0.3937]
[1733494926237,10.44019825,234.89,234.85,0.3937]
[1733494926437,19.65686815,234.88,234.85,0.3937]
[1733494926642,10.44019825,234.89,234.85,0.3937]
[1733494926841,19.65686817,234.88,234.85,0.3937]
[1733494927043,10.44019825,234.89,234.85,0.3937]
[1733494927438,19.65455035,234.88,234.85,0.3937]
[1733494927742,8.24054372,234.87,234.85,0.3937]
[1733494927948,10.44019825,234.89,234.85,0.3937]
[1733494928145,19.64681721,234.88,234.85,0.3937]
[1733494928448,8.23924303,234.87,234.85,0.3937]
[1733494928638,10.44019825,234.89,234.85,0.3937]
[1733494930446,19.62711959,234.88,234.85,0.3937]
[1733494930647,10.44019825,234.89,234.85,0.3937]
[1733494930844,11.39641209,234.88,234.85,0.3937]
[1733494931045,8.23144968,234.87,234.85,0.3937]
[1733494931254,10.44019825,234.89,234.85,0.3937]
[1733494931551,19.62370217,234.88,234.85,0.3937]
[1733494931752,10.44019825,234.89,234.85,0.3937]
[1733494931943,19.62250187,234.88,234.85,0.3937]
[1733494932244,10.44019825,234.86,234.85,0.3937]
[1733494933447,30.06437141,234.86,234.85,0.3937]
[1733494933648,18.66881348,234.86,234.85,0.3937]
[1733494933848,30.06841471,234.86,234.85,0.3937]
[1733494934351,18.66881348,234.86,234.85,0.3937]
[1733494934555,19.32227183,234.86,234.85,0.3937]
[1733494934853,30.71910773,234.86,234.85,0.3937]
[1733494936144,41.15930598,234.86,234.85,0.3937]
[1733494936346,48.85146429,234.86,234.85,0.05264383]
[1733494936545,48.85125002,234.86,234.85,0.05264383]
[1733494937258,38.41105177,234.86,234.85,0.05264383]
[1733494937556,33.21889346,234.86,234.85,0.05264383]
[1733494939856,32.56564938,234.86,234.85,0.05264383]
[1733494940054,33.21845681,234.86,234.85,0.05264383]
[1733494940658,33.218365,234.86,234.85,0.05264383]
[1733494941348,30.718365,234.86,234.85,0.05264383]
[1733494942856,30.06564938,234.86,234.85,0.05264383]
[1733494943956,30.71867669,234.86,234.85,0.05264383]
[1733494946461,30.06564938,234.86,234.85,0.05264383]
[1733494946656,10.44019825,234.96,234.85,0.05264383]
[1733494946657,10.44019825,234.89,234.85,0.05264383]
[1733494946853,19.60624222,234.88,234.85,0.05264383]
[1733494947056,10.44019825,234.89,234.85,0.05264383]
[1733494947359,19.60335328,234.88,234.85,0.05264383]
[1733494947561,10.44019825,234.89,234.85,0.05264383]
[1733494948061,6.68142863,234.87,234.85,0.05264383]
[1733494948360,6.68142863,234.89,234.85,0.05264383]
[1733494949155,6.68142863,234.87,234.85,0.05264383]
[1733494949963,10.43948491,234.91,234.85,0.05264383]
[1733494950762,8.21929305,234.9,234.85,0.05264383]
[1733494950955,10.43948491,234.88,234.85,0.05264383]
[1733494952362,10.43948491,234.91,234.85,0.05264383]
[1733494955362,0.64897,235.0,234.85,0.05264383]
[1733494955664,10.43948491,234.97,234.85,0.05264383]
[1733494955864,19.64190035,234.96,234.85,0.05264383]
[1733494956067,19.64190035,234.95,234.85,0.05264383]
[1733494956260,10.43948491,234.97,234.85,0.05264383]
[1733494957766,8.2260315,234.96,234.85,0.05264383]
[1733494958067,10.43948491,234.97,234.85,0.05264383]
[1733494958765,8.22357542,234.96,234.85,0.05264383]
[1733494958958,10.43948491,234.97,234.85,0.05264383]
[1733494959158,8.22386352,234.96,234.85,0.05264383]
[1733494959365,10.43948491,234.97,234.85,0.05264383]
[1733494959766,10.43948491,234.94,234.85,2.55264383]
[1733494960763,10.43948491,234.94,234.86,2.661]
[1733494961365,8.22609689,234.93,234.9,0.05264383]
[1733494961566,10.43948491,234.94,234.9,0.05264383]
[1733494961960,10.43948491,234.91,234.9,0.05264383]
[1733494962365,18.66207184,234.91,234.9,0.05264383]
[1733494962565,30.06528722,234.91,234.9,0.05264383]
[1733494966869,18.66207184,234.91,234.9,0.05264383]
[1733494967068,8.22258693,234.91,234.9,0.05264383]
[1733494967372,2.5,234.93,234.9,0.05264383]
[1733494967767,10.43948491,234.94,234.9,0.05264383]
[1733494968869,10.43948491,234.97,234.9,0.05264383]
[1733494969069,19.6406264,234.96,234.9,0.05264383]
[1733494969274,10.43948491,234.97,234.9,0.05264383]
[1733494971273,10.43948491,234.94,234.91,0.05264383]
[1733494972170,12.91948491,234.94,234.91,0.05264383]
[1733494972471,19.62098387,234.93,234.91,0.05264383]
[1733494972670,19.62098387,234.92,234.91,0.05264383]
[1733494973384,12.91948491,234.94,234.91,0.05264383]
[1733494973580,19.61883059,234.93,234.91,0.05264383]
[1733494973779,12.91948491,234.94,234.91,0.05264383]
[1733494973980,19.61928444,234.93,234.91,0.05264383]
[1733494974279,19.6182339,234.92,234.91,0.05264383]
[1733494975181,8.21977079,234.92,234.91,0.05264383]
[1733494975480,12.91948491,234.94,234.91,0.05264383]
[1733494975680,19.61686017,234.93,234.91,0.05264383]
[1733494975879,12.91948491,234.94,234.91,0.05264383]
[1733494976079,19.62001605,234.93,234.91,0.05264383]
[1733494976281,19.6192213,234.92,234.91,0.05264383]
[1733494977483,19.56657747,234.92,234.79,2.48]
[1733494977781,12.91948491,234.94,234.79,2.48]
[1733494977977,11.40252735,234.93,234.79,2.48]
[1733494978182,12.91948491,234.94,234.79,2.48]
[1733494978483,11.40255713,234.93,234.81,10.43948491]
[1733494978682,10.43948491,234.94,234.81,10.43948491]
[1733494979576,10.43948491,234.97,234.81,10.43948491]
[1733494983176,10.43948491,234.97,234.84,10.43948491]
[1733494983385,10.43948491,234.97,234.85,6.5185]
[1733494983788,10.43948491,235.02,234.87,10.43948491]
[1733494984090,10.43948491,235.05,234.9,10.43948491]
[1733494984290,11.4066916,235.04,234.91,2.48]
[1733494984483,11.4066916,235.03,234.91,2.48]
[1733494984689,10.43948491,235.05,234.91,2.48]
[1733494984887,11.40957392,235.04,234.91,2.48]
[1733494985089,10.43948491,235.05,234.91,2.48]
[1733494985291,10.43948491,235.08,234.93,10.43948491]
[1733494985586,12.05959853,235.07,234.93,10.43948491]
[1733494985785,10.43948491,235.08,234.94,1.3864]
[1733494986090,11.40624056,235.07,234.94,1.3864]
[1733494986280,10.43948491,235.08,234.95,2.6266]
[1733494986689,11.40316919,235.07,234.95,2.6266]
[1733494986891,10.43948491,235.08,234.95,2.6266]
[1733494987388,0.82603,235.1,234.96,10.43948491]
[1733494987689,19.61758803,235.09,234.97,2.48]
[1733494987882,8.21734052,235.08,234.97,2.48]
[1733494988085,0.82603,235.1,234.97,2.48]
[1733494991282,10.43948491,235.08,234.97,2.48]
[1733494993092,0.82603,235.1,234.97,2.48]
[1733494993692,0.82603,235.1,234.99,10.43948491]
[1733494994092,0.82603,235.1,235.03,6.66814526]
[1733494994289,0.82603,235.1,235.04,3.8677]
[1733494994592,0.82603,235.1,235.04,5.2158]
[1733494995088,6.66814526,235.09,235.04,5.2158]
[1733494995688,0.82603,235.1,235.04,5.2158]
[1733494995996,7.49417526,235.1,235.04,5.2158]
[1733495000394,7.49417526,235.1,235.04,11.88394526]
[1733495001401,0.82603,235.1,235.04,11.88394526]
[1733495003099,57.01,235.36,235.06,6.66814526]
[1733495003303,6.66814526,235.14,235.06,6.66814526]
[1733495003497,6.66814526,235.12,235.06,6.66814526]
[1733495003903,6.66814526,235.12,235.05,1.3312]
[1733495004099,6.66814526,235.1,235.06,2.48]
[1733495004508,6.66814526,235.08,235.06,2.48]
[1733495005997,6.66814526,235.08,235.04,2.48]
[1733495006401,6.66814526,235.06,235.02,2.48]
[1733495006600,6.66814526,235.04,235.02,2.48]
[1733495007107,6.66814526,235.06,235.02,2.48]
[1733495007298,6.66814526,235.08,235.02,2.48]
[1733495008005,6.66814526,235.1,235.02,2.48]
[1733495008606,6.66814526,235.1,235.03,6.66814526]
[1733495008798,51.95817062,235.21,235.05,6.66814526]
[1733495009004,6.66814526,235.13,235.05,6.66814526]
[1733495009299,6.66814526,235.11,235.05,6.66814526]
[1733495009504,6.66814526,235.11,235.03,6.66814526]
[1733495009905,6.66814526,235.13,235.05,6.66814526]
[1733495010503,6.66814526,235.15,235.07,6.66814526]
[1733495010802,6.66814526,235.15,235.08,2.48]
[1733495011208,51.95817062,235.21,235.09,6.66814526]
[1733495011209,6.66814526,235.17,235.09,6.66814526]
[1733495012002,51.95817062,235.21,235.09,6.66814526]
[1733495012200,6.66814526,235.16,235.09,6.66814526]
[1733495012809,6.66814526,235.19,235.11,6.66814526]
[1733495013411,6.66814526,235.17,235.09,6.66814526]
[1733495013605,6.66814526,235.17,235.1,1.3231]
[1733495014310,51.95817062,235.21,235.1,1.3231]
[1733495014504,6.66814526,235.17,235.1,1.3231]
[1733495016910,6.66814526,235.19,235.11,6.66814526]
[1733495017408,6.66814526,235.19,235.11,1.2627]
[1733495017603,6.66814526,235.17,235.11,1.2627]
[1733495018208,6.66814526,235.19,235.11,1.2627]
[1733495020614,6.66814526,235.17,235.11,1.2627]
[1733495021005,1.18769,235.22,235.11,1.2627]
[1733495021203,6.66814526,235.17,235.11,1.2627]
[1733495024210,1.18769,235.22,235.11,1.2627]
[1733495024515,6.66814526,235.18,235.11,1.2627]
[1733495026516,1.18769,235.22,235.12,6.66814526]
[1733495026814,6.66814526,235.16,235.11,1.2627]
[1733495027013,6.66814526,235.19,235.11,1.2627]
[1733495028523,2.48,235.27,235.11,1.2627]
[1733495028524,191.0,235.6,235.18,6.66814526]
[1733495028720,191.0,235.6,235.27,6.66814526]
[1733495028721,6.66814526,235.36,235.27,6.66814526]
[1733495028931,19.59268548,235.35,235.28,2.46]
[1733495029129,6.66814526,235.36,235.28,2.46]
[1733495029826,2.5626,235.44,235.29,6.66814526]
[1733495030027,20.22913875,235.43,235.31,6.66814526]
[1733495030223,6.66814526,235.4,235.31,6.66814526]
[1733495030826,6.66814526,235.38,235.31,6.66814526]
[1733495031323,6.66814526,235.33,235.19,44.2]
[1733495031528,6.66814526,235.31,235.2,2.46]
[1733495031727,6.66814526,235.31,235.21,6.66814526]
[1733495032533,6.66814526,235.29,235.21,6.66814526]
[1733495032827,6.66814526,235.29,235.22,2.46]
[1733495033730,6.66814526,235.31,235.22,9.12814526]
[1733495034231,10.40184082,235.35,235.22,2.46]
[1733495035829,1.2759,235.39,235.23,10.40184082]
[1733495036024,8.17868116,235.38,235.26,10.40184082]
[1733495036229,1.2759,235.39,235.26,10.40184082]
[1733495036830,1.2759,235.39,235.23,14.47144082]
[1733495039030,10.40184082,235.37,235.23,14.47144082]
[1733495041839,10.40184082,235.37,235.24,2.46]
[1733495042040,10.40184082,235.34,235.24,2.46]
[1733495042838,1.2759,235.39,235.24,2.46]
[1733495043240,1.2759,235.39,235.26,10.40184082]
[1733495045940,1.2759,235.39,235.24,1.2914]
[1733495046240,10.40184082,235.37,235.25,2.46]
[1733495046643,1.2759,235.39,235.25,2.46]
[1733495046937,10.40184082,235.34,235.24,1.2914]
[1733495047144,10.40184082,235.34,235.26,2.46]
[1733495047538,10.40184082,235.34,235.25,2.46]
[1733495048940,10.40184082,235.31,235.25,2.46]
[1733495050240,10.40184082,235.28,235.13,2.5547]
[1733495050441,10.40184082,235.28,235.14,12.86184082]
[1733495050745,10.40184082,235.28,235.15,2.46]
[1733495051143,2.46,235.32,235.14,10.40184082]
[1733495051144,10.40184082,235.25,235.14,2.46]
[1733495051647,10.40184082,235.28,235.15,10.40184082]
[1733495054344,1.2614,235.3,235.15,10.40184082]
[1733495056444,10.40184082,235.34,235.18,10.40184082]